Cogmind - Beta 10.2 --- EXPLORER MODE // 2021.11.05 @ 13:55:12 // AFD2020/Player2 Player: Giant Eel Result: Core destroyed Performance ------------- Evolutions (1) 500 Regions Visited (3) 600 Robots Destroyed (7) 35 Value Destroyed (110) 110 Prototype IDs (1) 20 Alien Tech Used (0) 0 Bonus (373) 373 TOTAL SCORE: 1638 Bonus ------- Follower Combat Kills 373 Cogmind --------- Core Integrity 0/400 Matter 290/300 Energy 197/200 System Corruption 0% Temperature Cool (3) Movement Flying (32) Location -9/Materials Parts ------- > --- POWER (2) -------- Light Deuterium Engine Light Nuclear Core > --- PROPULSION (3) --- Flight Unit VTOL Module Improved Flight Unit > --- UTILITY (2) ------ Improved Heat Sink Improved Light Armor Plating > --- WEAPON (3) ------- (None) > --- INVENTORY (4) ---- Light Deuterium Engine Flight Unit Heat Sink Improved Heat Sink Peak State ------------ > --- POWER ------------ Light Deuterium Engine Light Nuclear Core > --- PROPULSION ------- Flight Unit VTOL Module Improved Flight Unit > --- UTILITY ---------- Improved Heat Sink Improved Light Armor Plating > --- WEAPON ----------- Medium Laser > --- INVENTORY -------- Flight Unit Heat Sink Improved Heat Sink [Rating: 19] Favorites ----------- Power Light Ion Engine Engine Light Ion Engine Power Core Light Nuclear Core Propulsion Flight Unit Leg Aluminum Leg Flight Unit Flight Unit Utility Advanced Targeting Computer Device Improved Heat Sink Storage Medium Storage Unit Processor Advanced Targeting Computer Protection Improved Light Armor Plating Weapon Medium Laser Energy Gun Medium Laser Energy Cannon Light EM Pulse Cannon Ballistic Gun Minigun Special Weapon Mining Laser Build | -11 -10 -10 -9 ------- Run | Scr Mat Min Mat Slots Evolved 3 | . 1 . 2 Power 1 | . . . 1 Propulsion 1 | . . . 1 Utility . | . . . . Weapon 1 | . 1 . . Parts Attached 27 | . 1 14 12 Power 6 | . . 3 3 Engine 5 | . . 3 2 Core 1 | . . . 1 Reactor . | . . . . Propulsion 8 | . . 3 5 Treads . | . . . . Leg . | . . . . Wheel . | . . . . Hover . | . . . . Flight 8 | . . 3 5 Utility 7 | . . 5 2 Device 4 | . . 3 1 Storage . | . . . . Processor 1 | . . 1 . Hackware . | . . . . Protection 2 | . . 1 1 Artifact . | . . . . Weapon 6 | . 1 3 2 Energy Gun 2 | . . 1 1 Energy Cannon 1 | . . . 1 Ballistic Gun 1 | . . 1 . Ballistic Cannon . | . . . . Launcher . | . . . . Special Weapon 2 | . 1 1 . Impact Weapon . | . . . . Slashing Weapon . | . . . . Piercing Weapon . | . . . . Special Melee Weapon . | . . . . Unidentified Prototypes 1 | . . . 1 Parts Lost 7 | . . 1 6 Power 1 | . . . 1 Propulsion 3 | . . . 3 Utility . | . . . . Weapon 3 | . . 1 2 Highest Loss Streak 3 | . . 1 3 Average Slot Usage (%) 88 | . 87 89 88 Engine 10 | . 12 12 7 Core 2 | . . . 6 Leg 7 | . 25 9 . Flight 18 | . . 14 29 Device 7 | . . 7 10 Storage 3 | . 12 5 . Processor 5 | . . 6 5 Protection 3 | . 12 2 4 Energy Gun 14 | . 12 12 18 Ballistic Gun 3 | . 12 5 . Special Weapon 8 | . . 11 5 Naked Turns . | . . . . Heaviest Build 24 | 17 18 24 15 Greatest Support 20 | 20 20 20 15 Greatest Overweight (x) 7 | . . 7 1 Average Overweight (x) . | . . . . Largest Inventory Capacity 8 | 8 8 8 4 Average Capacity 5 | 8 8 5 4 Most Carried 8 | 7 7 8 4 Average Carried 5 | 7 7 5 3 Final Capacity 8 | 8 8 4 4 Final Carried 7 | 7 7 4 4 Class Distribution -------------------- 42% | Hacker-Mutant 24% | Hacker-Tank 14% | Hacker-Sprinter 13% | Scavenger-Gunner 4% | Hacker-Gunner Dominant Class ---------------- Hacker-Mutant | -10/Materials Hacker-Mutant | -10/Mines Hacker-Sprinter | -9/Materials Resources | -11 -10 -10 -9 ----------- Run | Scr Mat Min Mat Matter Collected 468 | 200 . 158 110 Remotely . | . . . . Salvage Created 207 | . . 75 132 Parts 17 | . . 7 10 Haulers Intercepted . | . . . . Recyclers Shooed 1 | . . . 1 Parts Field Recycled . | . . . . Retrieved Matter . | . . . . Parts Self-Destructed . | . . . . Prevented . | . . . . Kills | -11 -10 -10 -9 ------- Run | Scr Mat Min Mat Combat Hostiles Destroyed 4 | . . 4 . Guns 3 | . . 3 . Cannons 1 | . . 1 . Classes Destroyed 5 | . . 2 3 Worker 1 | . . . 1 Builder 1 | . . . 1 Recycler 1 | . . . 1 Swarmer 2 | . . 2 . Grunt 2 | . . 2 . Best Kill Streak 3 | . . 2 3 Combat Bots Only 2 | . . 2 . Max Kills in Single Turn 1 | . . 1 1 Gunslinging . | . . . . Exploded . | . . . . Melee . | . . . . Uniques/NPCs Destroyed . | . . . . Combat | -11 -10 -10 -9 -------- Run | Scr Mat Min Mat Damage Taken 472 | . 32 160 280 Core 68 | . . 24 44 Absorbed by Shields . | . . . . Core Remaining (%) 92 | 100 . 85 . Volleys Fired 22 | . . 12 10 Largest 2 | . . 2 2 Hottest 150 | . . 150 90 Shots Fired 34 | . . 22 12 Gun 29 | . . 17 12 Cannon . | . . . . Launcher . | . . . . Special 5 | . . 5 . Kinetic 5 | . . 5 . Thermal 29 | . . 17 12 Explosive . | . . . . Electromagnetic . | . . . . Robot Hit Streak 15 | . . 13 15 Robot Miss Streak 2 | . . 2 1 Penetration Max . | . . . . Secondary Targets . | . . . . Shots Hit Robots 29 | . . 18 11 Core Hits 11 | . . 6 5 Critical Hits . | . . . . Critical Kills . | . . . . Critical Parts Destroyed . | . . . . Melee Attacks . | . . . . Impact . | . . . . Slashing . | . . . . Piercing . | . . . . Sneak Attacks . | . . . . Combat Hostiles . | . . . . Follow-up Attacks . | . . . . Damage Inflicted 415 | . . 282 133 Guns 295 | . . 162 133 Cannons . | . . . . Explosions . | . . . . Melee . | . . . . Ramming . | . . . . Kinetic 35 | . . 35 . Thermal 380 | . . 247 133 Explosive . | . . . . Electromagnetic . | . . . . Impact . | . . . . Slashing . | . . . . Piercing . | . . . . Highest Corruption . | . . . . Average Corruption . | . . . . Corruption Purged . | . . . . Overload Shots . | . . . . Overflow Damage 3 | . . 3 . Projectiles 3 | . . 3 . Explosions . | . . . . Melee . | . . . . Knockbacks . | . . . . Impact . | . . . . Kinetic . | . . . . Secondary . | . . . . Self-Inflicted Damage . | . . . . Shots . | . . . . Rammed . | . . . . Targets Rammed . | . . . . Kicked . | . . . . Crushed . | . . . . Highest Temperature 126 | . . 126 9 Average Temperature 38 | . . 43 9 Received Heat Transfer 306 | . 30 129 147 Siege Activations . | . . . . Robots Corrupted . | . . . . Combat Hostiles . | . . . . Parts Fried . | . . . . Impact Corruptions . | . . . . Robots Melted . | . . . . Combat Hostiles . | . . . . Parts Melted . | . . . . Heat Transferred 1003 | . . 620 383 Parts Sabotaged . | . . . . Parts Stolen . | . . . . Parts Stripped . | . . . . Power Chain Reactions . | . . . . Missiles Intercepted . | . . . . Alert | -11 -10 -10 -9 ------- Run | Scr Mat Min Mat Peak Influence 483 | . . 198 483 Initial 35 | . . . 35 Average 115 | . . 88 209 Maximum Alert Level 2 | . . . 2 Low Security (%) 87 | 100 100 100 57 Level 1 6 | . . . 22 Level 2 5 | . . . 19 Level 3 . | . . . . Level 4 . | . . . . Level 5 . | . . . . High Security . | . . . . Max Security . | . . . . Squads Dispatched 2 | . . 1 1 Investigation 1 | . . 1 . Extermination . | . . . . Reinforcement 1 | . . . 1 Assault . | . . . . Garrison . | . . . . Intercept . | . . . . Construction Impeded . | . . . . Haulers Reinforced . | . . . . Stealth | -11 -10 -10 -9 --------- Run | Scr Mat Min Mat Distress Signals 3 | . . . 3 Communications Jammed . | . . . . Distress Signals . | . . . . Times Spotted 37 | . 2 13 22 Peak Tracking Total 10 | . 2 2 10 Tactical Retreats 6 | . . 1 5 Traps | -11 -10 -10 -9 ------- Run | Scr Mat Min Mat Traps Triggered . | . . . . Indirectly . | . . . . Trap Hack Attempts . | . . . . Triggered . | . . . . Disarmed . | . . . . Reprogrammed . | . . . . Reused . | . . . . Traps Extracted . | . . . . Installed . | . . . . Triggered . | . . . . Machines | -11 -10 -10 -9 ---------- Run | Scr Mat Min Mat Machines Disabled 1 | . . . 1 Max in Single Turn . | . . . . Machines Sabotaged . | . . . . Garrisons Compromised . | . . . . Overloaded Fab Kills . | . . . . Fab Network Shutdowns . | . . . . Hacking | -11 -10 -10 -9 --------- Run | Scr Mat Min Mat Machines Accessed 2 | . . 1 1 Terminals 1 | . . . 1 Fabricators . | . . . . Repair Stations . | . . . . Recycling Units . | . . . . Scanalyzers . | . . . . Garrison Access . | . . . . Total Hacks 6 | . . 1 5 Successful 3 | . . 1 2 Failed 3 | . . . 3 Catastrophic . | . . . . Database Lockouts . | . . . . Manual . | . . . . Terminals 5 | . . . 5 Fabricators . | . . . . Repair Stations . | . . . . Recycling Units . | . . . . Scanalyzers . | . . . . Garrison Access . | . . . . Terminal Hacks 3 | . . 1 2 Open Door 1 | . . 1 . Branch Access Points 1 | . . . 1 Zone Layout 1 | . . . 1 Fabricator Hacks . | . . . . Repair Station Hacks . | . . . . Recycling Unit Hacks . | . . . . Scanalyzer . | . . . . Garrison Access Hacks . | . . . . Unauthorized Hacks . | . . . . Terminals . | . . . . Fabricators . | . . . . Repair Stations . | . . . . Recycling Units . | . . . . Scanalyzers . | . . . . Garrison Access . | . . . . Data Cores Recovered . | . . . . Used . | . . . . Hacking Detections 1 | . . . 1 Full Trace Events . | . . . . Feedback Events . | . . . . Feedback Blocked . | . . . . Robot Schematics Acquired . | . . . . Robots Built . | . . . . Matter . | . . . . Time . | . . . . Total Robot Build Rating . | . . . . Part Schematics Acquired . | . . . . Parts Built . | . . . . Matter . | . . . . Time . | . . . . Total Part Build Rating . | . . . . Parts Repaired . | . . . . Time . | . . . . Parts Recycled . | . . . . Recycled Matter . | . . . . Retrieved Matter . | . . . . Retrieved Components . | . . . . Parts Scanalyzed . | . . . . Part Schematics Acquired . | . . . . Parts Damaged . | . . . . Bothacking | -11 -10 -10 -9 ------------ Run | Scr Mat Min Mat Used RIF Installer . | . . . . Robots Hacked . | . . . . Non-combat . | . . . . Combat . | . . . . Robot Hacks Applied . | . . . . Relay Couplers Released . | . . . . Robots Rewired . | . . . . Allies Hacked . | . . . . Hacks Repelled . | . . . . Allies | -11 -10 -10 -9 -------- Run | Scr Mat Min Mat Total Allies 4 | . 1 3 . Largest Group 4 | . 1 4 1 Highest-Rated Group 100 | . 54 100 63 Highest-Rated Ally 63 | . 54 60 63 Total Orders . | . . . . Ally Attacks 80 | . 2 31 47 Total Damage 1311 | . 50 498 763 Kills 21 | . . 8 13 Allies Corrupted . | . . . . Allies Melted . | . . . . Intel | -11 -10 -10 -9 ------- Run | Scr Mat Min Mat Robot Analysis Total . | . . . . Derelict Logs Recovered 1 | . . 1 . Drone Launches . | . . . . Drone Recoveries . | . . . . Exploration | -11 -10 -10 -9 ------------- Run | Scr Mat Min Mat Turns Passed 945 | 32 62 569 282 Spaces Moved 1406 | 27 51 751 577 Core 1 | . . 1 . Treads . | . . . . Legs 214 | 27 51 136 . Wheels . | . . . . Hover . | . . . . Flight 1191 | . . 614 577 Fastest Speed 32 | 120 120 37 32 Average Speed 51 | 120 120 58 33 Slowest Speed 440 | 120 120 440 117 Overloaded Moves . | . . . . Propulsion Burnouts . | . . . . Robots Hopped 9 | . . 2 7 Cave-ins Triggered . | . . . . Exploration Rate (%) 38 | 2 17 87 47 Regions Visited 3 Branch Regions 1 Pre-discovered Areas . | . . . . Known Exits Taken 3 | 1 1 1 . Unknown Exits Taken . | . . . . Scrap Searched 1 | . . 1 . Spaces Dug . | . . . . Terrain Destroyed . | . . . . Melee . | . . . . Projectile . | . . . . AOE . | . . . . Terrain Rammed . | . . . . Walls Destroyed . | . . . . Machines Disabled . | . . . . Actions | -11 -10 -10 -9 --------- Run | Scr Mat Min Mat Total 1573 | 26 51 852 644 Wait 101 | . . 60 41 Move 1386 | 26 50 746 564 Hop 8 | . . 2 6 Pick Up 5 | . . 2 3 Fast Attach 15 | . 1 8 6 Attach 5 | . . 1 4 Detach 4 | . . 2 2 Swap 8 | . . 5 3 Drop 19 | . . 14 5 Fire 22 | . . 12 10 Melee . | . . . . Ram . | . . . . Kick . | . . . . Crush . | . . . . Escape Stasis . | . . . . Rewire . | . . . . Trap . | . . . . Miscellaneous . | . . . . Route ------- -11/Scrapyard -10/Materials -10/Mines (discovered 2 exits: *Mat x2) -9/Materials (discovered 4 exits: *Mat / *Min x2 / *Sto) History --------- Turn | Location | Event 1 | -11/Scrapyard | Identified exit to Materials 1 | -11/Scrapyard | Discovered exit to Materials (range 3) 33 | -11/Scrapyard | Entered Materials 33 | -10/Materials | Evolved 1 slot: Weapon x1 83 | -10/Materials | Identified exit to Mines 83 | -10/Materials | Discovered exit to Mines (range 6) 95 | -10/Materials | Entered Mines 95 | -10/Mines | Accompanied by 1 ally 106 | -10/Mines | Met a Derelict shopkeep closing up shop 163 | -10/Mines | Identified exit to Materials 163 | -10/Mines | Discovered exit to Materials (range 13) 209 | -10/Mines | Assisted by bots powering up and referring to "LRC-V3" 362 | -10/Mines | Joined a pair of Derelicts in attacking an 0b10 outpost 378 | -10/Mines | Received a Rocket Launcher from a helpful Derelict 563 | -10/Mines | Discovered exit to Materials (range 10) 616 | -10/Mines | Build established: Hacker-Mutant 664 | -10/Mines | Entered Materials 664 | -9/Materials | Accompanied by 1 ally 664 | -9/Materials | Evolved 2 slots: Power x1, Propulsion x1 665 | -9/Materials | Identified exit to Storage 786 | -9/Materials | Identified exit to Mines 786 | -9/Materials | Discovered exit to Mines (range 16) 842 | -9/Materials | Identified exit to Materials 842 | -9/Materials | Discovered exit to Materials (range 15) 850 | -9/Materials | Lost 3 parts (1p1n1w) 928 | -9/Materials | Core integrity fell below 50% 939 | -9/Materials | Core integrity fell below 20% 946 | -9/Materials | Core destroyed Last Messages --------------- 00905_ Acquired 43 matter. 00907_ K-01 Serf collects debris. 00908_ K-01 Serf destroyed. 00910_ R-06 Scavenger collects Wheel. 00910_ R-06 Scavenger collects Med. Matter Pod. 00911_ Sml. Laser destroyed. 00912_ U-05 Engineer destroyed. 00913_ R-06 Scavenger collects Wheel. 00915_ R-06 Scavenger collects Welding Torch. 00916_ R-06 Scavenger destroyed. 00916_ R-06 Scavenger collects Com. Wheel. 00916_ R-06 Scavenger collects Lgt. Ion Engine. 00918_ R-06 Scavenger collects Terrain Scan Processor. 00919_ R-06 Scavenger collects Wheel. 00920_ Destroyed Tractor Beam. 00921_ R-06 Scavenger collects Lgt. Treads. 00921_ R-06 Scavenger collects Tractor Beam. 00936_ Acquired Lgt. Deuterium Engine. 00939_ Dropped Med. Laser. 00939_ Acquired Lgt. Deuterium Engine. Map ----- +----------------------------------------------------+ | #??# #????# """#????????????????????????? | | """""" #??#%#????# #????????????????????????? | | """""" #??#!#????# """#????????????????????????? | | """""" #??# #????# """#????????????????????????? | | """""" #??# #????# """#????????????????????????? | | """""" #??# #????#== #????????????????????????? | | #??# #????#/######????????????????????????? | | ! #??# #????#%#?????????????????????????????? | | ####+######+###### #?????????????????????????????? | | ???# #?# # #?????????????????????????????? | | ?### ### """ # #?????????????????????????????? | | ## # * "T" # #?????????????????????????????? | | # !!| # #?????????????????????????????? | | + ]!! """ + #?????????????????????????????? | | # """ # #?????????????????????????????? | | ## # """ # #?????????????????????????????? | | ?##### # # #?????????????????????????????? | | ?????# ### ####### #?????????????????????????????? | | ?????# #?###???### ###???????????????????????????? | | ?????# ######### #???????????????????????????? | | ###### #####???????????????????????? | | #???????????????????????? | | ###### ### #???????????????????????? | | ?????#### # #?# ########????????????????? | | ????????# ###+###?# a #???????????? | | ????????#==[*]]## ??##@#+##+##????????????????? | | ????????#== *]]## !|| #?# #??????????????????????? | | ????????######### !|| #?# #??????????????????????? | | ????????????????# !| #?# #??????????????????????? | | ????????????????# #?# #??????????????????????? | | ????????????????# #?# #??????????????????????? | | ????????????????# #?# #??????????????????????? | | ##??????????????#######?# #??????????????????????? | | #??????????????????????# #??????????????????????? | | #??????????????????????? ???????????????????????? | | #??????????????????????? ???????????????????????? | | #??????????????????????? ???????????????????????? | | #??????????????????????? ???????????????????????? | | #??????????????????????? ???????????????????????? | | ####????????????????????? ???????????????????????? | | #????????????????????? ???????????????????????? | | #?????????????????????????????????????????????? | | !! #?????????????????????????????????????????????? | | !! #?????????????????????????????????????????????? | | !! #?????????????????????????????????????????????? | | #?????????????????????????????????????????????? | | ####?????????????????????????????????????????????? | | #????????????????????????????????????????????????? | | #????????????????????????????????????????????????? | | #????????????????????????????????????????????????? | +----------------------------------------------------+ Best States ------------- Heat Dissipation 42 Energy Generation 23 Energy Capacity 275 Matter Stores 300 Matter Capacity 300 Sight Range 16 Terrain Scan Density 10 Armor Coverage 150 Resistance: KI 35 Resistance: TH 35 Resistance: EX 35 Resistance: EM 35 Resistance: I 35 Resistance: S 35 Resistance: P 35 Power Shielding 33 Evasion (%) 63 Targeting Accuracy 8 Offensive Hacking 20 Item Schematics ----------------- None Robot Schematics ------------------ None Fabricated ------------ Nothing Alien Tech Used ----------------- None Achievements -------------- None Challenges ------------ None Player 2 | -11 -10 -10 -9 ---------- Run | Scr Mat Min Mat Slots Evolved 2 | . . 2 . Power . | . . . . Propulsion 1 | . . 1 . Utility . | . . . . Weapon 1 | . . 1 . Parts Attached 15 | . 4 4 7 Parts Lost 9 | . . . 9 Damage Taken 1376 | . . 68 1308 Core 381 | . . 12 369 Player 2/Cogmind (%) 84 | . . 33 89 Absorbed by Shields . | . . . . Damage Inflicted 1050 | . 50 237 763 Player 2/Cogmind (%) 71 | . 100 45 85 Combat Hostiles Destroyed 16 | . . 3 13 Player 2/Cogmind (%) 80 | . . 42 100 Game ------ Seed CoreUltimateInverter Manual? 0 Play Time 00:21:00 Cumulative 21.8 hours Start 2021.11.04 @ 10:59:18 End 2021.11.05 @ 13:55:12 Sessions 5 Manual Loads 0 Difficulty Explorer Special Mode AFD2020/Player2 Game No. 14 Rogue 5 Adventurer 0 Explorer 9 Win Type - Total 1 Types 1/0/0/0/0/0/0/0/0 Lore% 22 Gallery% 26 Achievement% 25 Wizard Run 0 Options --------- ASCII 0 Keyboard 1 Movement Vi Keybinds 0 Fullscreen 1 Font 36/X11Bold Map View 76x50 Tactical HUD 1 Map Filters NONE Filters NONE Steam 1 RUN: 7b20d2f5-89f1-4438-b736-4e8d36c1e28e